[Event "29th IND-ch U17 Girls 2018"]
[Site "Sonipat"]
[Date "2018.09.09"]
[Round "9"]
[White "Jyothsna L"]
[Black "Sanskriti Goyal"]
[Result "1-0"]
[ECO "A76"]
[WhiteElo "1964"]
[BlackElo "1965"]
[Annotator "NA RC"]
[PlyCount "77"]
[EventDate "2018.09.05"]
[EventCountry "IND"]
[SourceTitle "playchess.com"]
[Source "ChessBase"]
[SourceQuality "1"]
[TimeControl "5400+30"]

{[%evp 9,61,72,76,63,70,50,49,30,54,29,36,18,31,14,66,33,64,51,64,75,56,27,43,75,56,55,53,32,70,42,68,61,110,32767,58,32767,32767,32767,32767,32767,32767,32767,23,59,58,49,73,32767,32767,91,164,123,148,178]} 1. d4 {[%emt 0:00:00]} Nf6 {[%emt 0:00:38]} 2. c4 {[%emt 0:00:04]} c5 {[%emt 0:00:14]} 3. d5 {[%emt 0:00:00]} e6 4. Nc3 {[%emt 0:00:09]} exd5 {[%emt 0:00:43]} 5. cxd5 {[%emt 0:00:02]} d6 {[%emt 0:00:01]} 6. e4 {[%emt 0:00:09]} g6 {[%emt 0:00:33]} 7. Nf3 {[%emt 0:00:18]} Bg7 {[%emt 0:00:37]} 8. Be2 {[%emt 0:00:17]} O-O {[%emt 0:00:07]} 9. O-O {[%emt 0:00:10]} Re8 {[%emt 0:00:31] LiveBook: 476 Games} 10. Qc2 {[%emt 0:00:48]} Qe7 {[%emt 0:11:26] A76: Modern Benoni: Classical: 9...Re8 10 Qc2} (10... Bg4 11. h3 Bxf3 12. Bxf3 Nbd7 13. Bf4 Ne5 14. Be2 a6 15. a4 Qc7 16. Rfe1 Re7 17. Bg3 g5 18. Qd2 {½-½ (51) Bagaturov,G (2397)-Ivanov,A (2506) Acqui Terme 2015}) 11. Re1 {[%emt 0:02:25]} a6 {[%emt 0:04:17]} 12. a4 {[%emt 0:01:22]} Nbd7 {[%emt 0:06:38]} 13. Bf4 {[%emt 0:03:23]} Nh5 {[%emt 0:12:07]} 14. Bg5 {[%emt 0:00:00]} Ndf6 $146 {[%emt 0:06:52]} ({Predecessor:} 14... Nhf6 15. Nd2 h6 16. Bh4 g5 17. Bg3 Ne5 18. h3 Qc7 19. a5 {½-½ (32) Petkov,S (2358)-Oprisor,R (2387) ICCF email 2008}) 15. Nd2 {[%emt 0:03:58]} h6 $1 {[%emt 0:03:31]} 16. Be3 {[%emt 0:02:20]} Ng4 {[%emt 0:02:47]} 17. Bxg4 {[%emt 0:01:13]} Bxg4 {[%emt 0:00:01]} 18. a5 {[%emt 0:12:32]} Rad8 {[%emt 0:08:00]} 19. f3 {[%emt 0:08:12]} Bc8 {[%emt 0:01:49]} 20. Nc4 {[%emt 0:06:46]} g5 {[%emt 0:09:14]} 21. Nb6 {[%emt 0:17:02]} Nf4 {[%emt 0:07:03]} 22. Nxc8 {[%emt 0:10:40]} Rxc8 {[%emt 0:00:00]} 23. Na4 {[%emt 0:00:46]} Ng6 {[%emt 0:05:19]} 24. Nb6 {[%emt 0:00:25]} Rcd8 {[%emt 0:00:04]} 25. Rab1 {[%emt 0:01:03]} g4 {[%emt 0:03:05]} 26. Kh1 {[%emt 0:03:28]} gxf3 {[%emt 0:03:31]} 27. gxf3 {[%emt 0:00:08]} Kh8 {[%emt 0:01:45]} 28. Nc4 {[%emt 0:04:55]} Nh4 {[%emt 0:04:08]} 29. Qf2 {[%emt 0:03:00]} Qf6 {[%emt 0:01:05]} (29... Rg8 $16) 30. Nd2 {[%emt 0:00:47]} Ng6 {[%emt 0:04:27]} 31. f4 $18 {[%emt 0:04:23]} Rd7 {[%emt 0:02:49]} 32. Rg1 {[%emt 0:01:37]} Qd8 {[%emt 0:01:26]} 33. Rg3 {[%emt 0:02:20]} Rg8 {[%emt 0:00:00]} 34. Rbg1 {[%emt 0:00:56]} Nf8 {[%emt 0:00:26]} 35. Qg2 {[%emt 0:02:48]} f6 {[%emt 0:00:00]} 36. Nc4 {[%emt 0:00:38]} Nh7 {[%emt 0:00:30]} 37. f5 {[%emt 0:00:55]} Ng5 {[%emt 0:00:56]} 38. h4 {[%emt 0:00:13]} Nh7 {[%emt 0:00:21]} 39. Bxh6 {[%emt 0:00:39]} 1-0

[Event "29th IND-ch U17 Girls 2018"]
[Site "Sonipat"]
[Date "2018.09.09"]
[Round "9"]
[White "Rindhiya V"]
[Black "Tarini Goyal"]
[Result "*"]
[ECO "B19"]
[WhiteElo "1688"]
[BlackElo "2072"]
[Annotator "NA RC"]
[PlyCount "80"]
[EventDate "2018.09.05"]
[EventCountry "IND"]
[SourceTitle "playchess.com"]
[Source "ChessBase"]
[SourceQuality "1"]
[TimeControl "5400+30"]

1. e4 {[%emt 0:00:00]} c6 {[%emt 0:00:52]} 2. d4 {[%emt 0:00:01]} d5 {[%emt 0:00:01]} 3. Nc3 {[%emt 0:00:01]} dxe4 {[%emt 0:00:02]} 4. Nxe4 {[%emt 0:00:01]} Bf5 {[%emt 0:00:01]} 5. Ng3 {[%emt 0:00:01]} Bg6 $1 {[%emt 0:00:29]} 6. h4 {[%emt 0:00:00]} h6 {[%emt 0:00:00]} 7. Nf3 {[%emt 0:00:32]} e6 {[%emt 0:00:00]} 8. h5 {[%emt 0:00:00]} Bh7 {[%emt 0:00:00]} 9. Bd3 {[%emt 0:00:01]} Bxd3 {[%emt 0:00:57]} 10. Qxd3 {[%emt 0:00:01]} Nf6 {[%emt 0:00:01]} 11. Bf4 {[%emt 0:00:01]} Bd6 {[%emt 0:07:03]} 12. Bxd6 {[%emt 0:00:01]} Qxd6 {[%emt 0:00:01]} 13. O-O-O {[%emt 0:00:02] B19: Classical Caro-Kann: 4...Bf5 main line} Nbd7 {[%emt 0:05:58]} 14. Kb1 {[%emt 0:00:01] LiveBook: 29 Games} (14. Qe2 O-O 15. Ne5 Qc7 16. Rhe1 Rad8 17. f4 c5 18. dxc5 Nxc5 19. Qc4 Rc8 20. Kb1 Qb6 {0-1 (42) Polgar,J (2686)-Ivanchuk,V (2764) Mexico City 2010}) 14... O-O-O {[%emt 0:16:16]} 15. c4 {[%emt 0:00:01]} Kb8 {[%emt 0:10:34]} 16. Ne4 {[%emt 0:00:01]} Nxe4 {[%emt 0:00:58]} 17. Qxe4 {[%emt 0:00:00]} Nf6 {[%emt 0:12:11]} 18. Qe5 {[%emt 0:24:47]} Rhf8 $146 {[%emt 0:16:57]} ({Predecessor:} 18... Qxe5 19. Nxe5 Rhf8 20. f3 Nd7 21. Rhe1 Nxe5 22. dxe5 Rxd1+ 23. Rxd1 Kc7 24. Kc2 Rd8 25. Rxd8 Kxd8 26. Kd3 Kd7 {½-½ (26) Oliveira,T (1659)-Vasconcelos,L (1885) Guimaraes 2002}) 19. Qxd6+ {[%emt 0:00:00]} Rxd6 {[%emt 0:00:00]} 20. Ne5 {[%emt 0:00:00]} Ne4 {[%emt 0:06:32]} 21. Rh4 {[%emt 0:00:01]} f5 {[%emt 0:05:49]} (21... Ng5 $11) 22. f3 {[%emt 0:00:01]} Nf6 {[%emt 0:03:57]} 23. Kc2 {[%emt 0:12:38]} Kc7 {[%emt 0:00:01]} 24. Rhh1 {[%emt 0:08:22]} b5 {[%emt 0:04:54]} 25. b3 {[%emt 0:09:24]} a6 {[%emt 0:01:19]} 26. Kc3 {[%emt 0:00:47]} a5 {[%emt 0:06:39]} 27. a3 {[%emt 0:01:36]} Rb8 {[%emt 0:00:00]} 28. Nd3 {[%emt 0:02:51]} Re8 {[%emt 0:00:00]} 29. Rde1 {[%emt 0:00:04]} Rd7 {[%emt 0:00:00]} ({Better is} 29... a4) 30. Re5 {[%emt 0:05:29]} Rde7 $18 {[%emt 0:00:00]} 31. Rhe1 {[%emt 0:03:58]} Nd7 {[%emt 0:01:00]} 32. R5e2 {[%emt 0:02:14]} bxc4 {[%emt 0:01:33]} 33. bxc4 {[%emt 0:00:11]} Kd6 {[%emt 0:00:00]} 34. Nf4 {[%emt 0:00:01]} e5 {[%emt 0:02:10]} 35. c5+ {[%emt 0:00:00]} Kc7 {[%emt 0:00:00]} 36. Kc4 {[%emt 0:00:00]} e4 {[%emt 0:00:00]} 37. Ng6 {[%emt 0:00:04]} Re6 {[%emt 0:00:00]} 38. Nf4 {[%emt 0:00:01]} R6e7 {[%emt 0:00:00]} 39. Ng6 {[%emt 0:00:18]} Re6 {[%emt 0:00:00]} 40. Nf4 {[%emt 0:00:01]} R6e7 {[%emt 0:00:00]} *

[Event "29th IND-ch U17 Girls 2018"]
[Site "Sonipat"]
[Date "2018.09.10"]
[Round "10"]
[White "Priyanka, Kumari"]
[Black "Bommini Mounika Akshaya"]
[Result "1-0"]
[ECO "B00"]
[WhiteElo "2005"]
[BlackElo "1787"]
[Annotator "NA RC"]
[PlyCount "113"]
[EventDate "2018.09.05"]
[EventCountry "IND"]
[SourceTitle "playchess.com"]
[Source "ChessBase"]
[SourceQuality "1"]
[TimeControl "5400+30"]

1. e4 {[%emt 0:00:00]} Nc6 {[%emt 0:00:00]} 2. Nf3 {[%emt 0:00:00]} d6 {[%emt 0:00:31]} 3. d4 {[%emt 0:00:01]} Nf6 {[%emt 0:00:01]} 4. Nc3 {[%emt 0:00:00]} Bg4 {[%emt 0:00:01]} 5. Be2 {[%emt 0:00:01]} e5 {[%emt 0:00:00]} 6. d5 {[%emt 0:00:00]} Ne7 {[%emt 0:00:00]} 7. Bg5 {[%emt 0:00:01] B00: Queen's Fianchetto Defence, Nimzowitsch Defence} Ng6 {[%emt 0:00:00]} 8. Nd2 {[%emt 0:00:00]} Bd7 {[%emt 0:00:01]} 9. h4 {[%emt 0:00:01]} h6 {[%emt 0:00:00]} 10. Bxf6 {[%emt 0:00:00]} Qxf6 {[%emt 1:09:41]} 11. g3 {[%emt 0:00:07]} Qd8 $146 {[%emt 0:00:15]} ({Predecessor:} 11... Be7 12. Bg4 Nf8 13. Qe2 Bxg4 14. Qxg4 Nd7 {1-0 (65) Puranik,A (2481)-Gusain,H (2438) Moscow 2017}) 12. Nc4 {[%emt 0:00:08]} Be7 {[%emt 0:00:21]} 13. Ne3 {[%emt 0:00:07]} Bf6 {[%emt 0:00:04]} 14. h5 {[%emt 0:00:04]} Ne7 {[%emt 0:00:03]} 15. Qd3 {[%emt 0:00:12]} Nc8 {[%emt 0:00:15]} 16. f4 {[%emt 0:00:05]} a6 {[%emt 0:00:03]} 17. a4 {[%emt 0:00:04]} Rb8 {[%emt 0:00:03]} 18. a5 {[%emt 0:00:29]} Na7 {[%emt 0:00:00]} 19. Kd2 {[%emt 0:00:04]} Nb5 {[%emt 0:00:13]} 20. Nxb5 {[%emt 0:00:06]} Bxb5 {[%emt 0:00:04]} 21. c4 {[%emt 0:00:20]} Bd7 {[%emt 0:00:03]} 22. Kc2 {[%emt 0:00:03]} Qc8 {[%emt 0:00:06]} 23. Rhf1 {[%emt 0:00:14]} b6 {[%emt 0:00:30]} 24. axb6 {[%emt 0:00:02]} cxb6 {[%emt 0:00:01]} 25. Qa3 $17 {[%emt 0:00:08]} Qc5 {[%emt 0:00:00]} 26. Qxc5 {[%emt 0:00:00]} bxc5 {[%emt 0:00:00]} 27. Rfb1 {[%emt 0:00:00]} Rb6 {[%emt 0:00:00]} 28. Bg4 {[%emt 0:00:01]} Ke7 {[%emt 0:00:00]} 29. Bxd7 {[%emt 0:00:02]} Kxd7 {[%emt 0:00:00]} 30. f5 {[%emt 0:00:00]} Rhb8 {[%emt 0:00:00]} 31. Nd1 {[%emt 0:00:01]} Bg5 {[%emt 0:00:00]} 32. Ra3 {[%emt 0:00:01]} Kc7 {[%emt 0:00:00]} 33. Rba1 {[%emt 0:00:01]} Ra8 {[%emt 0:00:00]} 34. Nc3 {[%emt 0:00:06]} Be7 {[%emt 0:00:00]} 35. Ra4 {[%emt 0:00:00]} Kc8 {[%emt 0:00:00]} 36. Ne2 {[%emt 0:00:02]} Bg5 {[%emt 0:00:00]} 37. R1a3 {[%emt 0:00:02]} Rab8 {[%emt 0:00:00]} 38. b3 {[%emt 0:00:01]} Ra8 {[%emt 0:00:00]} 39. Kd3 {[%emt 0:00:02]} Kc7 {[%emt 0:00:00]} 40. Nc3 {[%emt 0:00:01]} Be7 {[%emt 0:00:00]} 41. Nd1 {[%emt 0:00:02]} Bg5 {[%emt 0:00:00]} 42. Nc3 {[%emt 0:00:00]} Be7 {[%emt 0:00:00]} 43. Na2 {[%emt 0:00:02]} a5 {[%emt 0:00:00]} 44. Kc2 {[%emt 0:00:05]} Rba6 {[%emt 0:00:00]} 45. b4 {[%emt 0:00:03]} Kb6 {[%emt 0:00:00]} 46. bxc5+ {[%emt 0:00:01]} dxc5 {[%emt 0:00:00]} 47. Rb3+ {[%emt 0:00:01]} Kc7 {[%emt 0:00:00]} 48. Rb5 {[%emt 0:00:00]} Kd6 {[%emt 0:00:00]} 49. Nc1 {[%emt 0:00:00]} Bd8 {[%emt 0:00:00]} 50. Na2 {[%emt 0:00:02]} Bc7 {[%emt 0:00:00]} 51. Nc3 {[%emt 0:00:02]} Bb6 {[%emt 0:00:00]} 52. Ra3 {[%emt 0:00:01]} Rb8 {[%emt 0:00:00]} 53. Na4 {[%emt 0:00:00]} Ba7 {[%emt 0:00:00]} 54. Rxb8 {[%emt 0:00:00]} Bxb8 {[%emt 0:00:00]} 55. Rb3 {[%emt 0:00:00]} Ba7 {[%emt 0:00:00]} 56. Rb7 {[%emt 0:00:00]} f6 {[%emt 0:00:00]} 57. Kb3 {[%emt 0:00:00]} 1-0

[Event "29th IND-ch U17 Girls 2018"]
[Site "Sonipat"]
[Date "2018.09.10"]
[Round "10"]
[White "Tejasvi M"]
[Black "Jyothsna L"]
[Result "1/2-1/2"]
[ECO "B19"]
[WhiteElo "1747"]
[BlackElo "1964"]
[Annotator "NA RC"]
[PlyCount "73"]
[EventDate "2018.09.05"]
[EventCountry "IND"]
[SourceTitle "playchess.com"]
[Source "ChessBase"]
[SourceQuality "1"]
[TimeControl "5400+30"]

{[%evp 8,73,15,17,23,18,6,18,25,32767,32767,32767,32767,32767,32767,32767,32767,32767,32767,32767,32767,32767,32767,32767,32767,32767,32767,32767,19,21,5,5,16,0,-6,-10,-21,-1,0,0,0,0,0,0,0,-26,-29,-41,0,0,-8,-35,-28,-29,-5,-27,0,32767,32767,32767,-66,-85,0,-102,0,-92,-70,-66]} 1. e4 {[%emt 0:00:00]} c6 {[%emt 0:00:18]} 2. d4 {[%emt 0:00:08]} d5 {[%emt 0:00:00]} 3. Nc3 {[%emt 0:00:09]} dxe4 {[%emt 0:00:06]} 4. Nxe4 {[%emt 0:00:02]} Bf5 {[%emt 0:00:03]} 5. Ng3 {[%emt 0:00:10]} Bg6 $1 {[%emt 0:00:00]} 6. h4 {[%emt 0:00:07]} h6 {[%emt 0:00:04]} 7. Nf3 {[%emt 0:00:04]} Nd7 {[%emt 0:00:05]} 8. h5 {[%emt 0:00:08]} Bh7 {[%emt 0:00:00]} 9. Bd3 {[%emt 0:00:08]} Bxd3 {[%emt 0:00:07]} 10. Qxd3 {[%emt 0:00:59]} Qc7 {[%emt 0:00:01]} 11. Bd2 {[%emt 0:00:06]} e6 {[%emt 0:00:10]} 12. O-O-O {[%emt 0:00:47]} Ngf6 {[%emt 0:00:12]} 13. Ne4 {[%emt 0:00:17]} Nxe4 {[%emt 0:00:22]} 14. Qxe4 {[%emt 0:00:04]} Nf6 {[%emt 0:00:07]} 15. Qe2 {[%emt 0:00:06]} Bd6 {[%emt 0:00:21]} 16. g3 {[%emt 0:00:24]} O-O-O {[%emt 0:00:53]} 17. c4 {[%emt 0:00:19]} c5 {[%emt 0:19:23]} 18. Bc3 {[%emt 0:00:30]} cxd4 {[%emt 0:01:17]} 19. Nxd4 {[%emt 0:00:11]} a6 {[%emt 0:00:29]} 20. f4 {[%emt 0:24:45] LiveBook: 3 Games B19: Classical Caro-Kann: 4...Bf5 main line} (20. Kb1 Rd7 21. Rc1 Kb8 22. Nb3 Qc6 23. c5 Bc7 24. Rh4 Rhd8 25. Ba5 Qb5 26. Bxc7+ Rxc7 27. Qxb5 axb5 28. Nd4 {½-½ (38) Gao,R (2561)-Yu,R (2494) Hangzhou 2018}) 20... Rhe8 {[%emt 0:11:35]} 21. Nf3 {[%emt 0:10:45]} Qc6 {[%emt 0:05:06]} 22. Rde1 {[%emt 0:03:03]} Re7 {[%emt 0:11:51]} 23. Ne5 $146 {[%emt 0:25:44]} ({Predecessor:} 23. Kb1 Rc7 24. Ne5 Bxe5 25. fxe5 Ne4 26. Qe3 Nxc3+ 27. Qxc3 Qxc4 28. Qxc4 Rxc4 {0-1 (52) Fyllingen,R (2405)-Hole,O (2346) Oslo 2006}) 23... Bxe5 {[%emt 0:05:33]} 24. fxe5 {[%emt 0:01:56]} Nh7 {[%emt 0:01:07]} 25. Rhf1 {[%emt 0:08:28]} Red7 {[%emt 0:04:06]} 26. Ba5 {[%emt 0:04:58]} b6 {[%emt 0:01:18]} 27. Bc3 {[%emt 0:03:20]} Kb7 {[%emt 0:16:35]} 28. Kb1 {[%emt 0:04:31]} Ng5 {[%emt 0:00:43]} 29. Rf4 {[%emt 0:01:47]} Rd3 {[%emt 0:01:52]} 30. g4 {[%emt 0:01:47]} R8d7 {[%emt 0:01:57]} 31. Ref1 {[%emt 0:00:58]} Kc8 {[%emt 0:09:15]} 32. a3 {[%emt 0:07:19]} Kd8 {[%emt 0:00:14]} 33. Ka2 {[%emt 0:01:57]} Ke8 {[%emt 0:01:17]} 34. Kb3 $1 {[%emt 0:00:01]} Qc5 {[%emt 0:05:01]} 35. Qc2 {[%emt 0:00:39]} (35. Kc2 $1 $11) 35... Qc6 {[%emt 0:01:58]} (35... a5 $17 36. Ka2 Qc6) 36. Qe2 {[%emt 0:00:09]} a5 {[%emt 0:00:49]} 37. Kc2 $15 {[%emt 0:00:32]} 1/2-1/2

[Event "29th IND-ch U17 Girls 2018"]
[Site "Sonipat"]
[Date "2018.09.11"]
[Round "11"]
[White "Priyanka, Kumari"]
[Black "Sanskriti Goyal"]
[Result "1-0"]
[ECO "B90"]
[WhiteElo "2005"]
[BlackElo "1965"]
[Annotator "NA RC"]
[PlyCount "51"]
[EventDate "2018.09.05"]
[EventCountry "IND"]
[SourceTitle "playchess.com"]
[Source "ChessBase"]
[SourceQuality "1"]
[TimeControl "5400+30"]

1. e4 {[%emt 0:00:00]} c5 {[%emt 0:00:00]} 2. Nf3 {[%emt 0:00:00]} d6 {[%emt 0:00:00]} 3. d4 {[%emt 0:00:00]} cxd4 {[%emt 0:00:00]} 4. Nxd4 {[%emt 0:00:00]} Nf6 {[%emt 0:00:00]} 5. Nc3 {[%emt 0:00:01]} a6 {[%emt 0:00:01]} 6. Bd3 {[%emt 0:00:01]} e5 {[%emt 0:00:01]} 7. Nde2 {[%emt 0:00:00]} Be7 {[%emt 0:00:01]} 8. O-O {[%emt 0:00:00]} O-O {[%emt 0:00:01]} 9. Ng3 {[%emt 0:00:01]} g6 {[%emt 0:00:01]} 10. Bh6 {[%emt 0:00:01]} Re8 {[%emt 0:00:01]} 11. Qd2 {[%emt 0:00:01]} Be6 {[%emt 0:55:32]} 12. Nd5 $15 {[%emt 0:00:02]} Bxd5 {[%emt 0:00:00]} 13. exd5 {[%emt 0:00:00]} Ng4 {[%emt 0:00:00]} 14. Be3 {[%emt 0:00:00]} f5 {[%emt 0:00:01]} 15. Qb4 {[%emt 0:00:00]} Nd7 {[%emt 0:00:00]} 16. Nxf5 {[%emt 0:00:04]} gxf5 {[%emt 0:00:00]} 17. Bxf5 {[%emt 0:00:00]} Nxe3 {[%emt 0:00:00]} 18. fxe3 {[%emt 0:00:00]} Kh8 {[%emt 0:00:01]} 19. Bxh7 {[%emt 0:00:00]} Kxh7 {[%emt 0:00:00]} 20. Qe4+ {[%emt 0:00:00]} Kh6 {[%emt 0:00:05]} 21. Rf3 {[%emt 0:00:03]} Nf6 {[%emt 0:00:00]} 22. Rh3+ {[%emt 0:00:01]} Kg7 {[%emt 0:00:01]} 23. Rg3+ {[%emt 0:00:01]} Kh8 {[%emt 0:00:00]} 24. Qg6 {[%emt 0:00:00]} Rg8 {[%emt 0:00:01]} 25. Rh3+ {[%emt 0:00:00]} Nh7 {[%emt 0:00:00]} 26. Qxh7# {[%emt 0:00:00]} 1-0

[Event "29th IND-ch U17 Girls 2018"]
[Site "Sonipat"]
[Date "2018.09.11"]
[Round "11"]
[White "Jyothsna L"]
[Black "Tanishka Kotia"]
[Result "1-0"]
[ECO "D36"]
[WhiteElo "1964"]
[BlackElo "1918"]
[Annotator "NA RC"]
[PlyCount "75"]
[EventDate "2018.09.05"]
[EventCountry "IND"]
[SourceTitle "playchess.com"]
[Source "ChessBase"]
[SourceQuality "1"]
[TimeControl "5400+30"]

{[%evp 8,75,13,21,16,13,12,25,21,19,62,55,147,146,152,157,160,148,163,168,165,158,187,175,185,174,163,150,197,211,225,222,237,209,226,235,282,231,289,234,550,275,379,326,345,347,428,513,553,444,460,485,654,560,1106,1314,990,798,775,846,801,1048,903,1185,1157,1798,4998,4894,29991,29992]} 1. d4 {[%emt 0:00:00]} Nf6 {[%emt 0:00:04]} 2. c4 {[%emt 0:00:06]} e6 {[%emt 0:00:03]} 3. Nc3 {[%emt 0:00:06]} d5 {[%emt 0:00:03]} 4. cxd5 {[%emt 0:00:09]} exd5 {[%emt 0:00:04]} 5. Bg5 {[%emt 0:00:06]} c6 {[%emt 0:00:17]} 6. Qc2 {[%emt 0:00:21]} Be7 {[%emt 0:00:31]} 7. e3 {[%emt 0:00:13]} h6 {[%emt 0:00:37]} 8. Bh4 {[%emt 0:00:07] LiveBook: 65 Games} Nh5 {[%emt 0:01:04] D36: Queen's Gambit Declined: Exchange Variation: Main line (5 Bg5 c6 6 Qc2)} (8... O-O 9. Bd3 Re8 10. Nge2 Nh5 11. Bxe7 Qxe7 12. h3 a5 13. a3 Nd7 14. Na4 Qh4 15. g3 Qd8 16. g4 Nhf6 17. Ng3 Nf8 18. O-O-O {1-0 (67) Caruana,F (2799)-Kramnik,V (2803) Douglas 2017}) 9. Bxe7 {[%emt 0:00:24]} Qxe7 {[%emt 0:00:00] [#]} (9... Kxe7 $14 10. h3 Qb6) 10. Nxd5 $1 {[%emt 0:01:28]} Qd6 {[%emt 0:06:36]} 11. Nc3 {[%emt 0:00:28]} Nd7 $146 {[%emt 0:03:07]} ({Predecessor:} 11... O-O 12. Be2 Nf6 13. Nf3 Bg4 14. h3 Be6 15. g4 g6 16. Ne5 {1-0 (24) Olivares Canelles,F (2298)-Perez Torres,Y (2096) Havana 2010}) 12. Qe4+ {[%emt 0:02:10]} Kf8 {[%emt 0:01:37]} 13. Nf3 {[%emt 0:00:40]} Nhf6 {[%emt 0:01:15]} 14. Qc2 {[%emt 0:00:13]} Nb6 {[%emt 0:05:37]} 15. Rc1 {[%emt 0:01:07]} Be6 {[%emt 0:06:34]} 16. Bd3 {[%emt 0:02:20]} Nfd5 {[%emt 0:02:57]} 17. a3 {[%emt 0:02:17]} g6 {[%emt 0:10:40]} 18. Ne4 {[%emt 0:02:00]} Qe7 {[%emt 0:05:25]} 19. Nc5 {[%emt 0:09:45]} Kg7 {[%emt 0:09:11]} 20. Ne5 {[%emt 0:01:38]} Rae8 {[%emt 0:04:06]} 21. O-O {[%emt 0:05:22]} h5 {[%emt 0:02:00]} 22. Rce1 {[%emt 0:01:17]} Bc8 {[%emt 0:04:35]} 23. f4 {[%emt 0:04:34]} Qc7 $2 {[%emt 0:09:32] [#]} (23... Qd6 {is a better chance.} 24. Ne4 Qd8) 24. Qf2 {[%emt 0:03:08]} (24. Bxg6 $142 $1 {[%mdl 512]} Re7 (24... fxg6 25. Qxg6+) 25. Bxf7 Rxf7 26. Qg6+ Kf8 27. f5 (27. Qxf7+ Qxf7 28. Nxf7 Kxf7 $18)) 24... Nd7 {[%emt 0:01:40]} (24... f5 {was called for.} 25. e4 Ne7) 25. Ncxd7 {[%emt 0:00:55]} Bxd7 {[%emt 0:02:31]} 26. f5 {[%emt 0:01:55]} g5 {[%emt 0:02:53]} 27. f6+ {[%emt 0:00:51]} Kf8 {[%emt 0:01:38]} 28. Qg3 {[%emt 0:03:36]} Rg8 {[%emt 0:00:56]} 29. Bh7 {[%emt 0:13:00]} Rh8 {[%emt 0:00:33]} 30. Be4 {[%emt 0:01:09]} Rg8 {[%emt 0:01:00]} 31. Bxd5 {[%emt 0:01:04]} Rxe5 {[%emt 0:01:11]} 32. Qxe5 {[%emt 0:00:47]} Qxe5 {[%emt 0:00:12]} 33. dxe5 {[%emt 0:00:00]} cxd5 {[%emt 0:00:05]} 34. e4 {[%emt 0:00:32]} Ke8 {[%emt 0:05:06]} 35. exd5 {[%emt 0:00:06]} Kd8 {[%emt 0:01:16]} 36. e6 {[%emt 0:00:00]} fxe6 $18 {[%emt 0:00:27]} 37. dxe6 {[%emt 0:00:00]} Bb5 {[%emt 0:00:19]} 38. f7 {[%emt 0:00:05]} 1-0